[Event "Titled Tuesday Blitz May 30 Late 2023"]
[White "Kravtsiv, Martyn"]
[Black "Duda, Jan-Krzysztof"]
[WhiteFideId "14113147"]
[BlackFideId "1170546"]
[WhiteElo "2695"]
[BlackElo "2790"]
[Result "0-1"]
[Round "05"]
[TimeControl "180+2"]
[Date "2023.05.31"]
[WhiteClock "0:00:01"]
[BlackClock "0:00:03"]

1. e4 {[%clk 0:03:00]}  c5 {[%clk 0:03:00]} 2. Nf3 {[%clk 0:03:00]}  d6 {[%clk 0:03:01]} 3. Bb5+ {[%clk 0:02:59]}  Nd7 {[%clk 0:03:00]} 4. d4 {[%clk 0:02:58]}  cxd4 {[%clk 0:03:00]} 5. Qxd4 {[%clk 0:02:59]}  a6 {[%clk 0:03:00]} 6. Bxd7+ {[%clk 0:02:58]}  Bxd7 {[%clk 0:03:01]} 7. O-O {[%clk 0:02:57]}  Rc8 {[%clk 0:02:58]} 8. c4 {[%clk 0:02:56]}  e5 {[%clk 0:02:58]} 9. Qd3 {[%clk 0:02:56]}  b5 {[%clk 0:02:58]} 10. Na3 {[%clk 0:02:56]}  Qb6 {[%clk 0:02:58]} 11. cxb5 {[%clk 0:02:56]}  axb5 {[%clk 0:02:56]} 12. Bd2 {[%clk 0:02:54]}  Nf6 {[%clk 0:02:47]} 13. Rac1 {[%clk 0:02:52]}  Rxc1 {[%clk 0:02:22]} 14. Rxc1 {[%clk 0:02:51]}  Be7 {[%clk 0:02:22]} 15. Bb4 {[%clk 0:02:50]}  d5 {[%clk 0:01:57]} 16. Bxe7 {[%clk 0:02:39]}  dxe4 {[%clk 0:01:58]} 17. Qd2 {[%clk 0:01:38]}  exf3 {[%clk 0:01:45]} 18. Bc5 {[%clk 0:01:39]}  Qe6 {[%clk 0:01:35]} 19. gxf3 {[%clk 0:01:29]}  Nd5 {[%clk 0:01:30]} 20. Qa5 {[%clk 0:01:06]}  Qg6+ {[%clk 0:01:08]} 21. Kh1 {[%clk 0:00:52]}  Bc6 {[%clk 0:01:09]} 22. Nxb5 {[%clk 0:00:48]}  Nf4 {[%clk 0:00:46]} 23. Nc7+ {[%clk 0:00:31]}  Kd7 {[%clk 0:00:46]} 24. Rd1+ {[%clk 0:00:32]}  Kc8 {[%clk 0:00:21]} 25. Qa6+ {[%clk 0:00:19]}  Bb7 {[%clk 0:00:21]} 26. Qxg6 {[%clk 0:00:19]}  hxg6 {[%clk 0:00:17]} 27. Re1 {[%clk 0:00:10]}  Bxf3+ {[%clk 0:00:16]} 28. Kg1 {[%clk 0:00:11]}  Ne2+ {[%clk 0:00:04]} 29. Rxe2 {[%clk 0:00:09]}  Bxe2 {[%clk 0:00:05]} 30. Nd5 {[%clk 0:00:09]}  Bf3 {[%clk 0:00:05]} 31. Ne3 {[%clk 0:00:06]}  Kd7 {[%clk 0:00:04]} 32. a4 {[%clk 0:00:05]}  Ra8 {[%clk 0:00:04]} 33. b3 {[%clk 0:00:06]}  Kc6 {[%clk 0:00:04]} 34. Ba3 {[%clk 0:00:05]}  Rd8 {[%clk 0:00:03]} 35. h4 {[%clk 0:00:04]}  Rd3 {[%clk 0:00:03]} 36. Bb2 {[%clk 0:00:03]}  Rxb3 {[%clk 0:00:03]} 37. Bxe5 {[%clk 0:00:03]}  f6 {[%clk 0:00:03]} 38. Bd4 {[%clk 0:00:02]}  Rb4 {[%clk 0:00:04]} 39. Bc3 {[%clk 0:00:02]}  Rxh4 {[%clk 0:00:03]} 40. a5 {[%clk 0:00:01]}  Rh1# {[%clk 0:00:03]} 0-1


[Site "https://www.chess.com"]

[Event "Titled Tuesday Blitz May 30 Late 2023"]
[White "Rasulov, Vugar"]
[Black "Rustemov, Alexander"]
[WhiteFideId "13402390"]
[BlackFideId "4119002"]
[WhiteElo "2509"]
[BlackElo "2876"]
[Result "0-1"]
[Round "05"]
[TimeControl "180+2"]
[Date "2023.05.31"]
[WhiteClock "0:00:02"]
[BlackClock "0:00:14"]

1. e4 {[%clk 0:03:00]}  e6 {[%clk 0:02:59]} 2. d4 {[%clk 0:02:58]}  d5 {[%clk 0:03:00]} 3. Nc3 {[%clk 0:02:59]}  dxe4 {[%clk 0:03:00]} 4. Nxe4 {[%clk 0:02:59]}  Bd7 {[%clk 0:03:01]} 5. Nf3 {[%clk 0:02:58]}  Bc6 {[%clk 0:03:01]} 6. Neg5 {[%clk 0:02:58]}  Nd7 {[%clk 0:03:01]} 7. Bd3 {[%clk 0:02:53]}  Ngf6 {[%clk 0:02:59]} 8. Qe2 {[%clk 0:02:50]}  Qe7 {[%clk 0:02:57]} 9. O-O {[%clk 0:02:45]}  h6 {[%clk 0:02:58]} 10. Ne4 {[%clk 0:02:46]}  Nxe4 {[%clk 0:02:57]} 11. Bxe4 {[%clk 0:02:47]}  Bxe4 {[%clk 0:02:57]} 12. Qxe4 {[%clk 0:02:47]}  O-O-O {[%clk 0:02:57]} 13. c4 {[%clk 0:02:46]}  g5 {[%clk 0:02:55]} 14. Qe2 {[%clk 0:02:31]}  Bg7 {[%clk 0:02:52]} 15. Be3 {[%clk 0:02:31]}  Rhe8 {[%clk 0:02:43]} 16. Rfd1 {[%clk 0:02:26]}  f5 {[%clk 0:02:42]} 17. c5 {[%clk 0:02:14]}  c6 {[%clk 0:02:37]} 18. b4 {[%clk 0:02:07]}  f4 {[%clk 0:02:33]} 19. Bd2 {[%clk 0:02:04]}  e5 {[%clk 0:02:32]} 20. Bc3 {[%clk 0:01:47]}  e4 {[%clk 0:02:17]} 21. Nd2 {[%clk 0:01:47]}  Nf6 {[%clk 0:02:17]} 22. Nc4 {[%clk 0:01:44]}  Nd5 {[%clk 0:02:10]} 23. Qc2 {[%clk 0:01:31]}  e3 {[%clk 0:01:52]} 24. Nd6+ {[%clk 0:01:22]}  Rxd6 {[%clk 0:01:50]} 25. cxd6 {[%clk 0:01:23]}  Qxd6 {[%clk 0:01:51]} 26. Be1 {[%clk 0:01:23]}  exf2+ {[%clk 0:01:39]} 27. Bxf2 {[%clk 0:01:23]}  Ne3 {[%clk 0:01:40]} 28. Qe2 {[%clk 0:01:12]}  Bxd4 {[%clk 0:01:32]} 29. Kh1 {[%clk 0:01:04]}  Qe5 {[%clk 0:01:30]} 30. Rxd4 {[%clk 0:00:34]}  Qxd4 {[%clk 0:01:30]} 31. Rg1 {[%clk 0:00:35]}  Qxb4 {[%clk 0:01:24]} 32. Qh5 {[%clk 0:00:33]}  Re6 {[%clk 0:01:17]} 33. Qf7 {[%clk 0:00:28]}  Qe7 {[%clk 0:01:16]} 34. Qg8+ {[%clk 0:00:28]}  Kc7 {[%clk 0:01:15]} 35. Qa8 {[%clk 0:00:26]}  Qa3 {[%clk 0:01:04]} 36. Rb1 {[%clk 0:00:23]}  b6 {[%clk 0:00:53]} 37. Qg8 {[%clk 0:00:22]}  Rd6 {[%clk 0:00:45]} 38. Rg1 {[%clk 0:00:14]}  Rd7 {[%clk 0:00:36]} 39. Qe6 {[%clk 0:00:12]}  Qd6 {[%clk 0:00:35]} 40. Qe4 {[%clk 0:00:12]}  Ng4 {[%clk 0:00:33]} 41. Be1 {[%clk 0:00:12]}  Qd5 {[%clk 0:00:27]} 42. Qa4 {[%clk 0:00:10]}  Kb7 {[%clk 0:00:26]} 43. h3 {[%clk 0:00:10]}  Ne3 {[%clk 0:00:25]} 44. Bf2 {[%clk 0:00:11]}  c5 {[%clk 0:00:22]} 45. Bxe3 {[%clk 0:00:07]}  fxe3 {[%clk 0:00:22]} 46. Re1 {[%clk 0:00:07]}  Re7 {[%clk 0:00:21]} 47. Qg4 {[%clk 0:00:06]}  Qe4 {[%clk 0:00:20]} 48. Qg3 {[%clk 0:00:06]}  e2 {[%clk 0:00:20]} 49. Qf2 {[%clk 0:00:06]}  c4 {[%clk 0:00:20]} 50. Qf6 {[%clk 0:00:06]}  Qe5 {[%clk 0:00:18]} 51. Qxh6 {[%clk 0:00:05]}  c3 {[%clk 0:00:19]} 52. Qh5 {[%clk 0:00:04]}  c2 {[%clk 0:00:18]} 53. Qf3+ {[%clk 0:00:05]}  Qe4 {[%clk 0:00:17]} 54. Qc3 {[%clk 0:00:05]}  Rc7 {[%clk 0:00:14]} 55. Qd2 {[%clk 0:00:02]}  c1=Q {[%clk 0:00:14]} 0-1


[Site "https://www.chess.com"]

[Event "Titled Tuesday Blitz May 30 Late 2023"]
[White "Papasimakopoulos, Alexandros"]
[Black "Naroditsky, Daniel"]
[WhiteFideId "4244125"]
[BlackFideId "2026961"]
[WhiteElo "2359"]
[BlackElo "2633"]
[Result "1/2-1/2"]
[Round "05"]
[TimeControl "180+2"]
[Date "2023.05.31"]
[WhiteClock "0:01:10"]
[BlackClock "0:01:17"]

1. d4 {[%clk 0:03:00]}  Nf6 {[%clk 0:02:59]} 2. c4 {[%clk 0:03:01]}  g6 {[%clk 0:02:52]} 3. Nc3 {[%clk 0:03:00]}  Bg7 {[%clk 0:02:52]} 4. Bg5 {[%clk 0:02:56]}  d6 {[%clk 0:02:51]} 5. e3 {[%clk 0:02:56]}  Bf5 {[%clk 0:02:50]} 6. Bd3 {[%clk 0:02:40]}  Bxd3 {[%clk 0:02:47]} 7. Qxd3 {[%clk 0:02:41]}  Nbd7 {[%clk 0:02:29]} 8. Nf3 {[%clk 0:02:32]}  O-O {[%clk 0:02:25]} 9. O-O {[%clk 0:02:30]}  c6 {[%clk 0:02:25]} 10. Rfd1 {[%clk 0:02:20]}  a6 {[%clk 0:02:24]} 11. a4 {[%clk 0:02:13]}  a5 {[%clk 0:02:23]} 12. e4 {[%clk 0:02:05]}  e5 {[%clk 0:02:15]} 13. dxe5 {[%clk 0:02:04]}  dxe5 {[%clk 0:01:57]} 14. Be3 {[%clk 0:02:00]}  Qe7 {[%clk 0:01:51]} 15. Qd6 {[%clk 0:01:58]}  Rfe8 {[%clk 0:01:51]} 16. Qxe7 {[%clk 0:01:50]}  Rxe7 {[%clk 0:01:52]} 17. h3 {[%clk 0:01:47]}  Bf8 {[%clk 0:01:52]} 18. Nd2 {[%clk 0:01:45]}  Ree8 {[%clk 0:01:49]} 19. Nb3 {[%clk 0:01:44]}  Bb4 {[%clk 0:01:49]} 20. f3 {[%clk 0:01:43]}  Nf8 {[%clk 0:01:37]} 21. Na2 {[%clk 0:01:43]}  Be7 {[%clk 0:01:36]} 22. Bb6 {[%clk 0:01:30]}  N8d7 {[%clk 0:01:26]} 23. Be3 {[%clk 0:01:25]}  Nf8 {[%clk 0:01:26]} 24. Bb6 {[%clk 0:01:25]}  N8d7 {[%clk 0:01:25]} 25. Bf2 {[%clk 0:01:22]}  Nf8 {[%clk 0:01:17]} 26. Bb6 {[%clk 0:01:10]} 1/2-1/2


[Site "https://www.chess.com"]

[Event "Titled Tuesday Blitz May 30 Late 2023"]
[White "Paravyan, David"]
[Black "Goryachkina, Aleksandra"]
[WhiteFideId "4194985"]
[BlackFideId "4147103"]
[WhiteElo "2563"]
[BlackElo "2471"]
[Result "1/2-1/2"]
[Round "05"]
[TimeControl "180+2"]
[Date "2023.05.31"]
[WhiteClock "0:00:09"]
[BlackClock "0:00:05"]

1. Nf3 {[%clk 0:02:56]}  d5 {[%clk 0:02:59]} 2. g3 {[%clk 0:02:55]}  g6 {[%clk 0:02:55]} 3. Bg2 {[%clk 0:02:53]}  Bg7 {[%clk 0:02:55]} 4. d4 {[%clk 0:02:53]}  Nf6 {[%clk 0:02:55]} 5. O-O {[%clk 0:02:52]}  O-O {[%clk 0:02:55]} 6. c4 {[%clk 0:02:49]}  c6 {[%clk 0:02:55]} 7. Qa4 {[%clk 0:02:38]}  Nbd7 {[%clk 0:02:31]} 8. cxd5 {[%clk 0:02:31]}  cxd5 {[%clk 0:02:31]} 9. Nc3 {[%clk 0:02:29]}  Nb6 {[%clk 0:02:27]} 10. Qb3 {[%clk 0:02:28]}  e6 {[%clk 0:02:17]} 11. Bf4 {[%clk 0:02:28]}  Bd7 {[%clk 0:02:16]} 12. Bd6 {[%clk 0:02:09]}  Re8 {[%clk 0:02:15]} 13. Ne5 {[%clk 0:02:08]}  Bc6 {[%clk 0:02:10]} 14. Qa3 {[%clk 0:01:46]}  Nfd7 {[%clk 0:02:02]} 15. Nxd7 {[%clk 0:01:34]}  Qxd7 {[%clk 0:02:01]} 16. Bf4 {[%clk 0:01:06]}  Bxd4 {[%clk 0:02:01]} 17. Rad1 {[%clk 0:01:02]}  Bg7 {[%clk 0:01:58]} 18. Qb3 {[%clk 0:00:42]}  d4 {[%clk 0:01:24]} 19. Bxc6 {[%clk 0:00:30]}  Qxc6 {[%clk 0:01:24]} 20. Nb5 {[%clk 0:00:29]}  e5 {[%clk 0:01:23]} 21. Rc1 {[%clk 0:00:19]}  Qd5 {[%clk 0:01:15]} 22. Bd2 {[%clk 0:00:19]}  Qxb3 {[%clk 0:00:58]} 23. axb3 {[%clk 0:00:20]}  Re7 {[%clk 0:00:54]} 24. Rc5 {[%clk 0:00:12]}  Rd7 {[%clk 0:00:28]} 25. Rfc1 {[%clk 0:00:11]}  f6 {[%clk 0:00:23]} 26. Ba5 {[%clk 0:00:09]}  Nd5 {[%clk 0:00:17]} 27. Nc7 {[%clk 0:00:03]}  Nxc7 {[%clk 0:00:15]} 28. Rxc7 {[%clk 0:00:04]}  Rxc7 {[%clk 0:00:15]} 29. Rxc7 {[%clk 0:00:05]}  b6 {[%clk 0:00:16]} 30. Bd2 {[%clk 0:00:05]}  f5 {[%clk 0:00:13]} 31. Kg2 {[%clk 0:00:03]}  e4 {[%clk 0:00:13]} 32. b4 {[%clk 0:00:03]}  d3 {[%clk 0:00:10]} 33. exd3 {[%clk 0:00:03]}  exd3 {[%clk 0:00:11]} 34. b3 {[%clk 0:00:02]}  Rd8 {[%clk 0:00:08]} 35. Rxa7 {[%clk 0:00:02]}  Bd4 {[%clk 0:00:05]} 36. Rb7 {[%clk 0:00:02]}  h5 {[%clk 0:00:05]} 37. h4 {[%clk 0:00:03]}  Rd5 {[%clk 0:00:04]} 38. Kf3 {[%clk 0:00:03]}  Re5 {[%clk 0:00:03]} 39. Rd7 {[%clk 0:00:03]}  Re2 {[%clk 0:00:03]} 40. Rxd4 {[%clk 0:00:02]}  Rxd2 {[%clk 0:00:03]} 41. Ke3 {[%clk 0:00:03]}  Re2+ {[%clk 0:00:04]} 42. Kf3 {[%clk 0:00:03]}  Rd2 {[%clk 0:00:04]} 43. Rd6 {[%clk 0:00:02]}  Kf7 {[%clk 0:00:04]} 44. Ke3 {[%clk 0:00:03]}  Re2+ {[%clk 0:00:04]} 45. Kf3 {[%clk 0:00:03]}  Rd2 {[%clk 0:00:04]} 46. Rxb6 {[%clk 0:00:04]}  Rb2 {[%clk 0:00:04]} 47. Ke3 {[%clk 0:00:03]}  Rxb3 {[%clk 0:00:03]} 48. b5 {[%clk 0:00:03]}  Kg7 {[%clk 0:00:02]} 49. Rb8 {[%clk 0:00:04]}  Kh7 {[%clk 0:00:02]} 50. b6 {[%clk 0:00:04]}  Kg7 {[%clk 0:00:02]} 51. Kd2 {[%clk 0:00:04]}  Kh7 {[%clk 0:00:02]} 52. Ke3 {[%clk 0:00:05]}  Kg7 {[%clk 0:00:03]} 53. Rb7+ {[%clk 0:00:04]}  Kg8 {[%clk 0:00:02]} 54. Kd2 {[%clk 0:00:04]}  Kh8 {[%clk 0:00:02]} 55. f3 {[%clk 0:00:04]}  Kg8 {[%clk 0:00:02]} 56. Ke3 {[%clk 0:00:05]}  Kh8 {[%clk 0:00:02]} 57. f4 {[%clk 0:00:03]}  Kg8 {[%clk 0:00:02]} 58. Kd2 {[%clk 0:00:04]}  Kh8 {[%clk 0:00:01]} 59. Rb8+ {[%clk 0:00:04]}  Kg7 {[%clk 0:00:01]} 60. Ke3 {[%clk 0:00:04]}  Kh7 {[%clk 0:00:01]} 61. b7 {[%clk 0:00:05]}  Kg7 {[%clk 0:00:01]} 62. Kd2 {[%clk 0:00:05]}  Kh7 {[%clk 0:00:02]} 63. Rd8 {[%clk 0:00:05]}  Rxb7 {[%clk 0:00:02]} 64. Rxd3 {[%clk 0:00:05]}  Kg7 {[%clk 0:00:02]} 65. Ke3 {[%clk 0:00:06]}  Re7+ {[%clk 0:00:02]} 66. Kf3 {[%clk 0:00:07]}  Kf7 {[%clk 0:00:03]} 67. Re3 {[%clk 0:00:07]}  Rd7 {[%clk 0:00:03]} 68. Ra3 {[%clk 0:00:07]}  Re7 {[%clk 0:00:04]} 69. Re3 {[%clk 0:00:07]}  Rd7 {[%clk 0:00:04]} 70. Ra3 {[%clk 0:00:08]}  Re7 {[%clk 0:00:05]} 71. Re3 {[%clk 0:00:09]} 1/2-1/2


[Site "https://www.chess.com"]

[Event "Titled Tuesday Blitz May 30 Late 2023"]
[White "Muradli, Mahammad"]
[Black "Turayev, Shahruh"]
[WhiteFideId "13409301"]
[BlackFideId "14003856"]
[WhiteElo "2558"]
[BlackElo "2185"]
[Result "1-0"]
[Round "05"]
[TimeControl "180+2"]
[Date "2023.05.31"]
[WhiteClock "0:00:54"]
[BlackClock "0:00:01"]

1. Nf3 {[%clk 0:03:00]}  Nf6 {[%clk 0:02:59]} 2. c4 {[%clk 0:02:59]}  e6 {[%clk 0:02:59]} 3. g3 {[%clk 0:02:59]}  d5 {[%clk 0:02:59]} 4. Bg2 {[%clk 0:03:00]}  Be7 {[%clk 0:02:59]} 5. O-O {[%clk 0:03:01]}  O-O {[%clk 0:03:00]} 6. b3 {[%clk 0:03:01]}  d4 {[%clk 0:02:59]} 7. Bb2 {[%clk 0:03:02]}  c5 {[%clk 0:02:59]} 8. e3 {[%clk 0:03:02]}  Nc6 {[%clk 0:02:59]} 9. exd4 {[%clk 0:03:01]}  cxd4 {[%clk 0:02:59]} 10. Re1 {[%clk 0:03:02]}  Re8 {[%clk 0:01:34]} 11. d3 {[%clk 0:02:55]}  a5 {[%clk 0:01:31]} 12. Nbd2 {[%clk 0:02:52]}  Bb4 {[%clk 0:01:31]} 13. a3 {[%clk 0:02:51]}  Bc3 {[%clk 0:01:26]} 14. Bxc3 {[%clk 0:02:50]}  dxc3 {[%clk 0:01:26]} 15. Nb1 {[%clk 0:02:50]}  e5 {[%clk 0:01:08]} 16. Nxc3 {[%clk 0:02:48]}  Bg4 {[%clk 0:01:05]} 17. h3 {[%clk 0:02:48]}  Bh5 {[%clk 0:01:06]} 18. g4 {[%clk 0:02:37]}  Bg6 {[%clk 0:01:05]} 19. Re3 {[%clk 0:02:38]}  Qd6 {[%clk 0:00:29]} 20. Qe2 {[%clk 0:02:31]}  Rad8 {[%clk 0:00:29]} 21. Nb5 {[%clk 0:02:29]}  Qf8 {[%clk 0:00:25]} 22. Nxe5 {[%clk 0:02:20]}  Nxe5 {[%clk 0:00:20]} 23. Rxe5 {[%clk 0:02:21]}  Rxe5 {[%clk 0:00:19]} 24. Qxe5 {[%clk 0:02:22]}  Rxd3 {[%clk 0:00:17]} 25. Re1 {[%clk 0:02:13]}  Rxb3 {[%clk 0:00:16]} 26. g5 {[%clk 0:02:10]}  Nh5 {[%clk 0:00:14]} 27. Qc7 {[%clk 0:02:00]}  h6 {[%clk 0:00:09]} 28. gxh6 {[%clk 0:01:56]}  gxh6 {[%clk 0:00:10]} 29. Nd6 {[%clk 0:01:57]}  Rb1 {[%clk 0:00:06]} 30. Rxb1 {[%clk 0:01:55]}  Bxb1 {[%clk 0:00:07]} 31. Nxb7 {[%clk 0:01:34]}  Qxa3 {[%clk 0:00:05]} 32. Kh2 {[%clk 0:01:17]}  Qc1 {[%clk 0:00:03]} 33. Nxa5 {[%clk 0:01:13]}  Nf4 {[%clk 0:00:03]} 34. Nb3 {[%clk 0:01:04]}  Qc3 {[%clk 0:00:01]} 35. Qxf4 {[%clk 0:00:57]}  Qxb3 {[%clk 0:00:01]} 36. c5 {[%clk 0:00:56]}  Qc3 {[%clk 0:00:02]} 37. c6 {[%clk 0:00:57]}  Bg6 {[%clk 0:00:02]} 38. c7 {[%clk 0:00:57]}  Kh7 {[%clk 0:00:02]} 39. Bb7 {[%clk 0:00:55]}  Be4 {[%clk 0:00:01]} 40. Bxe4+ {[%clk 0:00:54]} 1-0


[Site "https://www.chess.com"]

[Event "Titled Tuesday Blitz May 30 Late 2023"]
[White "Bruedigam, Martin"]
[Black "Holt, Conrad"]
[WhiteFideId "24608033"]
[BlackFideId "2034387"]
[WhiteElo "2331"]
[BlackElo "2592"]
[Result "0-1"]
[Round "05"]
[TimeControl "180+2"]
[Date "2023.05.31"]
[WhiteClock "0:00:18"]
[BlackClock "0:00:21"]

1. d4 {[%clk 0:03:00]}  d5 {[%clk 0:02:59]} 2. c4 {[%clk 0:03:01]}  c6 {[%clk 0:03:00]} 3. Nc3 {[%clk 0:02:56]}  dxc4 {[%clk 0:02:59]} 4. e3 {[%clk 0:02:56]}  b5 {[%clk 0:02:59]} 5. a4 {[%clk 0:02:56]}  b4 {[%clk 0:02:59]} 6. Ne4 {[%clk 0:02:56]}  Qd5 {[%clk 0:02:59]} 7. Nd2 {[%clk 0:02:55]}  c3 {[%clk 0:02:59]} 8. bxc3 {[%clk 0:02:54]}  bxc3 {[%clk 0:03:00]} 9. Nb1 {[%clk 0:02:54]}  Qa5 {[%clk 0:03:00]} 10. Qc2 {[%clk 0:02:45]}  Na6 {[%clk 0:03:00]} 11. Qxc3 {[%clk 0:02:41]}  Nb4 {[%clk 0:03:00]} 12. Bd2 {[%clk 0:02:40]}  e6 {[%clk 0:02:58]} 13. Nf3 {[%clk 0:02:37]}  Nf6 {[%clk 0:02:57]} 14. Bd3 {[%clk 0:02:29]}  Nfd5 {[%clk 0:02:26]} 15. Qb3 {[%clk 0:02:29]}  Nxd3+ {[%clk 0:02:17]} 16. Qxd3 {[%clk 0:02:30]}  Qa6 {[%clk 0:02:17]} 17. Qc2 {[%clk 0:02:20]}  Nb4 {[%clk 0:02:12]} 18. Bxb4 {[%clk 0:02:21]}  Bxb4+ {[%clk 0:02:12]} 19. Nbd2 {[%clk 0:02:21]}  f6 {[%clk 0:01:43]} 20. Rc1 {[%clk 0:02:14]}  Bd7 {[%clk 0:01:38]} 21. Qc4 {[%clk 0:02:06]}  Qxa4 {[%clk 0:01:28]} 22. O-O {[%clk 0:02:04]}  O-O {[%clk 0:01:26]} 23. Ne4 {[%clk 0:01:56]}  Qb5 {[%clk 0:01:20]} 24. Qb3 {[%clk 0:01:29]}  a5 {[%clk 0:01:10]} 25. Nc5 {[%clk 0:01:29]}  Bxc5 {[%clk 0:01:09]} 26. Qxb5 {[%clk 0:01:28]}  cxb5 {[%clk 0:01:09]} 27. dxc5 {[%clk 0:01:27]}  e5 {[%clk 0:01:01]} 28. c6 {[%clk 0:01:26]}  Bf5 {[%clk 0:00:59]} 29. Rc5 {[%clk 0:01:22]}  b4 {[%clk 0:00:59]} 30. Nd2 {[%clk 0:01:16]}  Bd3 {[%clk 0:00:59]} 31. Rd1 {[%clk 0:01:10]}  a4 {[%clk 0:00:55]} 32. Nc4 {[%clk 0:01:07]}  Bc2 {[%clk 0:00:48]} 33. Rc1 {[%clk 0:00:55]}  b3 {[%clk 0:00:47]} 34. Na3 {[%clk 0:00:39]}  Bf5 {[%clk 0:00:43]} 35. Rb5 {[%clk 0:00:28]}  Rfb8 {[%clk 0:00:37]} 36. Rxb8+ {[%clk 0:00:24]}  Rxb8 {[%clk 0:00:37]} 37. c7 {[%clk 0:00:22]}  Rc8 {[%clk 0:00:37]} 38. Rc4 {[%clk 0:00:17]}  b2 {[%clk 0:00:33]} 39. e4 {[%clk 0:00:17]}  Bxe4 {[%clk 0:00:22]} 40. Rxe4 {[%clk 0:00:16]}  Rxc7 {[%clk 0:00:22]} 41. g4 {[%clk 0:00:16]}  Rc1+ {[%clk 0:00:16]} 42. Kg2 {[%clk 0:00:16]}  Ra1 {[%clk 0:00:16]} 43. Rxa4 {[%clk 0:00:16]}  b1=Q {[%clk 0:00:16]} 44. Nxb1 {[%clk 0:00:15]}  Rxa4 {[%clk 0:00:16]} 45. h3 {[%clk 0:00:15]}  Kf7 {[%clk 0:00:16]} 46. Nd2 {[%clk 0:00:16]}  Rb4 {[%clk 0:00:17]} 47. Nf1 {[%clk 0:00:16]}  Ke6 {[%clk 0:00:17]} 48. Ng3 {[%clk 0:00:17]}  g6 {[%clk 0:00:18]} 49. Nf1 {[%clk 0:00:16]}  f5 {[%clk 0:00:18]} 50. Nh2 {[%clk 0:00:17]}  Kf6 {[%clk 0:00:18]} 51. gxf5 {[%clk 0:00:17]}  gxf5 {[%clk 0:00:18]} 52. Nf3 {[%clk 0:00:18]}  Rb3 {[%clk 0:00:19]} 53. Ng1 {[%clk 0:00:18]}  Ra3 {[%clk 0:00:19]} 54. Ne2 {[%clk 0:00:19]}  Kg5 {[%clk 0:00:20]} 55. Ng3 {[%clk 0:00:20]}  e4 {[%clk 0:00:19]} 56. Nf1 {[%clk 0:00:21]}  f4 {[%clk 0:00:20]} 57. Nh2 {[%clk 0:00:20]}  Kf5 {[%clk 0:00:20]} 58. h4 {[%clk 0:00:20]}  h5 {[%clk 0:00:20]} 59. f3 {[%clk 0:00:19]}  Ra2+ {[%clk 0:00:20]} 60. Kh3 {[%clk 0:00:19]}  e3 {[%clk 0:00:21]} 61. Nf1 {[%clk 0:00:18]}  e2 {[%clk 0:00:21]} 0-1


[Site "https://www.chess.com"]

[Event "Titled Tuesday Blitz May 30 Late 2023"]
[White "Sun, Rick"]
[Black "Sarana, Alexey"]
[WhiteFideId "30909481"]
[BlackFideId "24133795"]
[WhiteElo "2169"]
[BlackElo "2714"]
[Result "0-1"]
[Round "05"]
[TimeControl "180+2"]
[Date "2023.05.31"]
[WhiteClock "0:00:03"]
[BlackClock "0:00:58"]

1. d4 {[%clk 0:03:00]}  Nf6 {[%clk 0:02:59]} 2. Nc3 {[%clk 0:03:01]}  d5 {[%clk 0:02:58]} 3. Bf4 {[%clk 0:03:01]}  a6 {[%clk 0:02:57]} 4. e3 {[%clk 0:03:01]}  c5 {[%clk 0:02:57]} 5. Nf3 {[%clk 0:03:01]}  Nc6 {[%clk 0:02:56]} 6. dxc5 {[%clk 0:03:00]}  Bg4 {[%clk 0:02:55]} 7. Be2 {[%clk 0:03:00]}  e6 {[%clk 0:02:53]} 8. h3 {[%clk 0:02:59]}  Bxf3 {[%clk 0:02:50]} 9. Bxf3 {[%clk 0:02:57]}  Bxc5 {[%clk 0:02:51]} 10. O-O {[%clk 0:02:52]}  O-O {[%clk 0:02:51]} 11. Re1 {[%clk 0:02:44]}  Bd6 {[%clk 0:02:43]} 12. Bg5 {[%clk 0:02:37]}  Be5 {[%clk 0:02:35]} 13. Ne2 {[%clk 0:02:17]}  h6 {[%clk 0:02:30]} 14. Bh4 {[%clk 0:02:13]}  Bxb2 {[%clk 0:02:27]} 15. Rb1 {[%clk 0:02:10]}  Be5 {[%clk 0:02:27]} 16. Rxb7 {[%clk 0:02:10]}  Na5 {[%clk 0:02:25]} 17. Rb4 {[%clk 0:02:01]}  Qd6 {[%clk 0:02:16]} 18. Ra4 {[%clk 0:01:48]}  Qc5 {[%clk 0:02:16]} 19. Nd4 {[%clk 0:01:34]}  Nc4 {[%clk 0:02:13]} 20. Qe2 {[%clk 0:01:09]}  Rfc8 {[%clk 0:01:49]} 21. Rb1 {[%clk 0:00:59]}  Bxd4 {[%clk 0:01:48]} 22. exd4 {[%clk 0:00:58]}  Qxd4 {[%clk 0:01:49]} 23. Bxf6 {[%clk 0:00:43]}  Qxf6 {[%clk 0:01:50]} 24. Rb7 {[%clk 0:00:40]}  g6 {[%clk 0:01:34]} 25. Rab4 {[%clk 0:00:33]}  a5 {[%clk 0:01:27]} 26. Rb1 {[%clk 0:00:31]}  Na3 {[%clk 0:01:23]} 27. R1b2 {[%clk 0:00:31]}  Kg7 {[%clk 0:01:18]} 28. g3 {[%clk 0:00:27]}  Rc5 {[%clk 0:01:16]} 29. Kg2 {[%clk 0:00:18]}  Rac8 {[%clk 0:01:15]} 30. R2b3 {[%clk 0:00:13]}  Rxc2 {[%clk 0:01:13]} 31. Qe3 {[%clk 0:00:08]}  Nc4 {[%clk 0:01:10]} 32. Qa7 {[%clk 0:00:09]}  Ne5 {[%clk 0:01:08]} 33. Re3 {[%clk 0:00:06]}  R8c3 {[%clk 0:01:00]} 34. Rxe5 {[%clk 0:00:03]}  Qxf3+ {[%clk 0:00:59]} 35. Kf1 {[%clk 0:00:02]}  Rc1+ {[%clk 0:00:58]} 36. Re1 {[%clk 0:00:02]}  Qh1+ {[%clk 0:00:57]} 37. Ke2 {[%clk 0:00:03]}  Qxe1# {[%clk 0:00:58]} 0-1


[Site "https://www.chess.com"]